bitfinex-derivatives/quotes_SOLF0:USTF0_20260314
["timestamp","ask_amount","ask_price","bid_price","bid_amount"]
[1773503499433,39.46238971,86.76,86.722,15.22810977]
[1773503500629,39.44238971,86.76,86.723,4.84632678]
[1773503502435,10.37,86.77,86.723,4.84632678]
[1773503502436,8.95254237,86.769,86.723,4.84632678]
[1773503502732,36.3,86.768,86.725,4.84933551]
[1773503503635,36.3,86.768,86.727,4.85159873]
[1773503504335,3.14238971,86.76,86.707,4.85159873]
[1773503504530,3.14238971,86.75,86.707,4.85159873]
[1773503504735,3.14238971,86.76,86.707,4.85159873]
[1773503505536,3.1394395,86.76,86.71,4.85323313]
[1773503506132,36.3,86.768,86.715,4.85323313]
[1773503507632,36.3,86.768,86.724,4.87391694]
[1773503508538,36.3,86.768,86.729,4.87336924]
[1773503509333,36.3,86.768,86.733,4.87336924]
[1773503509637,36.3,86.776,86.733,4.87336924]
[1773503511539,3.1394395,86.77,86.733,4.87336924]
[1773503513439,36.3,86.775,86.733,4.87336924]
[1773503515342,36.3,86.775,86.734,10.374]
[1773503516643,36.3,86.775,86.735,4.86012719]
[1773503516834,36.3,86.781,86.737,4.86012719]
[1773503517735,36.3,86.781,86.745,4.87860727]
[1773503518944,3.1394395,86.79,86.745,4.87860727]
[1773503518945,36.3,86.786,86.745,4.87860727]
[1773503521437,3.1394395,86.78,86.745,4.87860727]
[1773503525349,3.1394395,86.79,86.747,4.86956163]
[1773503525550,10.367,86.795,86.747,4.86956163]
[1773503525850,36.3,86.797,86.747,4.86956163]
[1773503526549,36.3,86.797,86.751,4.84580226]
[1773503527642,36.3,86.797,86.756,4.77426982]
[1773503528454,3.1394395,86.81,86.756,4.77426982]
[1773503528651,36.3,86.815,86.761,4.77426982]
[1773503528949,36.3,86.818,86.761,4.77426982]
[1773503529142,36.3,86.82,86.761,4.77426982]
[1773503529542,36.3,86.82,86.767,4.78217778]
[1773503530653,10.364,86.822,86.769,4.78509139]
[1773503531547,3.1394395,86.82,86.769,4.78509139]
[1773503531750,3.1394395,86.82,86.771,4.78595837]
[1773503532053,10.364,86.822,86.771,4.78595837]
[1773503533549,10.364,86.822,86.773,4.80035988]
[1773503534958,3.1394395,86.8,86.741,4.8097433]
[1773503535156,3.1394395,86.79,86.741,4.8097433]
[1773503536654,3.1394395,86.79,86.749,10.373]
[1773503536857,3.1394395,86.78,86.741,4.8097433]
[1773503538356,3.1394395,86.79,86.743,4.81442535]
[1773503539154,10.367,86.798,86.743,4.81442535]
[1773503539558,10.367,86.798,86.745,4.83507152]
[1773503539760,3.1394395,86.8,86.745,4.83507152]
[1773503540159,36.28,86.803,86.757,4.83507152]
[1773503540464,21.54933601,86.862,86.71,34.62]
[1773503540465,10.365,86.817,86.761,4.83507152]
[1773503541153,36.28,86.824,86.767,4.83512024]
[1773503541353,3.1394395,86.82,86.767,4.83512024]
[1773503542765,3.1394395,86.82,86.769,4.83339355]
[1773503545360,3.1394395,86.82,86.772,4.83691198]
[1773503547465,3.1394395,86.82,86.775,4.78796451]
[1773503548367,36.28,86.819,86.775,4.78796451]
[1773503549869,36.28,86.819,86.777,4.79281717]
[1773503550957,3.1394395,86.82,86.777,4.79281717]
[1773503551270,46.642,86.838,86.781,4.79300159]
[1773503551567,3.1394395,86.82,86.781,4.79300159]
[1773503553564,3.1394395,86.82,86.775,4.79181492]
[1773503557877,10.364,86.819,86.775,4.79181492]
[1773503560879,3.1394395,86.81,86.775,4.79181492]
[1773503561783,3.1394395,86.81,86.765,4.75984475]
[1773503563678,13.5054395,86.81,86.765,4.75984475]
[1773503565686,13.50184408,86.81,86.765,4.75984475]
[1773503567791,10.366,86.802,86.765,4.75984475]
[1773503568390,3.13584408,86.8,86.754,4.75459171]
[1773503569598,10.367,86.799,86.754,4.75459171]
[1773503569894,3.13584408,86.8,86.754,4.75459171]
[1773503570088,10.367,86.798,86.754,4.75459171]
[1773503570491,3.13584408,86.8,86.754,4.75459171]
[1773503570888,10.367,86.799,86.754,4.75459171]
[1773503575899,3.13584408,86.8,86.755,4.75983686]
[1773503580304,3.13584408,86.8,86.76,4.73397298]
[1773503587704,3.13584408,86.79,86.747,4.68455081]
[1773503587910,36.28,86.81,86.747,4.68455081]
[1773503587911,3.13584408,86.78,86.747,4.68455081]
[1773503588206,3.13584408,86.78,86.721,4.68455081]
[1773503589608,3.13584408,86.78,86.735,4.68390977]
[1773503591605,13.50484408,86.78,86.735,4.68390977]
[1773503595412,3.13584408,86.79,86.735,4.68390977]
[1773503595709,3.13584408,86.81,86.751,4.75151246]
[1773503596308,36.28,86.812,86.761,4.75151246]
[1773503597515,10.367,86.8,86.761,4.75151246]
[1773503606320,10.368,86.791,86.761,4.75151246]
[1773503606511,3.13584408,86.8,86.761,4.75151246]
[1773503606711,3.13584408,86.8,86.74,3.13584408]
[1773503607016,10.368,86.793,86.741,4.75363952]
[1773503620528,36.28,86.812,86.741,4.75363952]
[1773503620529,10.368,86.785,86.741,4.75363952]
[1773503622827,3.13584408,86.78,86.741,4.75363952]
[1773503626733,3.13584408,86.78,86.72,3.13584408]
[1773503626734,3.13584408,86.76,86.726,4.85392229]
[1773503627030,3.13584408,86.77,86.726,4.85392229]
[1773503627229,3.13584408,86.76,86.726,4.85392229]
[1773503627732,3.13921794,86.76,86.726,4.85392229]
[1773503631436,3.13921794,86.76,86.712,4.83671894]
[1773503637137,10.37,86.769,86.712,4.83671894]
[1773503654161,10.371,86.761,86.712,4.83671894]
[1773503654658,3.13921794,86.77,86.712,4.83671894]
[1773503655655,13.50921794,86.77,86.712,4.83671894]
[1773503657860,3.13921794,86.76,86.712,4.83671894]
[1773503658261,13.50921794,86.77,86.712,4.83671894]
[1773503659161,3.13921794,86.76,86.712,4.83671894]
[1773503662266,3.13921794,86.76,86.715,4.83957547]
[1773503666858,3.13921794,86.76,86.687,36.28]
[1773503667058,3.13921794,86.76,86.65,35.82894041]
[1773503667059,3.13921794,86.74,86.701,4.77605436]
[1773503667256,3.13921794,86.75,86.701,4.77605436]
[1773503668267,3.13921794,86.74,86.701,4.77605436]
[1773503672366,3.13921794,86.75,86.701,4.77605436]
[1773503686380,10.373,86.747,86.701,4.77605436]
[1773503688782,3.13921794,86.74,86.701,4.77605436]
[1773503689785,3.14066455,86.74,86.701,4.77605436]
[1773503696685,3.14066455,86.77,86.711,4.71824564]
[1773503696890,8.91348403,86.769,86.711,4.71824564]
[1773503697085,3.14066455,86.77,86.711,4.71824564]
[1773503698290,3.14066455,86.76,86.711,4.71824564]
[1773503698785,3.14066455,86.76,86.713,4.75837779]
[1773503698990,3.14066455,86.74,86.713,4.75837779]
[1773503699786,3.14066455,86.75,86.713,4.75837779]
[1773503705600,10.373,86.747,86.713,4.75837779]
[1773503705801,3.14066455,86.74,86.691,4.76411239]
[1773503725123,3.14066455,86.73,86.691,4.76411239]
[1773503733722,13.51466455,86.74,86.691,4.76411239]
[1773503742230,8.94800203,86.739,86.691,4.76411239]
[1773503742427,13.51466455,86.74,86.691,4.76411239]
[1773503742627,3.14066455,86.73,86.691,4.76411239]
[1773503748135,10.374,86.738,86.691,4.76411239]
[1773503748340,8.96391669,86.737,86.691,4.76411239]
[1773503748541,8.96391669,86.736,86.691,4.76411239]
[1773503748742,10.374,86.738,86.691,4.76411239]
[1773503748933,8.96391669,86.737,86.691,4.76411239]
[1773503749138,8.96391669,86.736,86.691,4.76411239]
[1773503749440,10.374,86.738,86.691,4.76411239]
[1773503749642,8.9644128,86.737,86.691,4.76411239]
[1773503749842,8.9644128,86.736,86.691,4.76411239]
[1773503750042,10.374,86.738,86.691,4.76411239]
[1773503750343,8.9644128,86.737,86.691,4.76411239]
[1773503750639,8.9644128,86.736,86.691,4.76411239]
[1773503750842,10.374,86.738,86.691,4.76411239]
[1773503751042,8.96499616,86.737,86.691,4.76411239]
[1773503751242,8.96499616,86.736,86.691,4.76411239]
[1773503751443,10.374,86.738,86.691,4.76411239]
[1773503751644,8.9650349,86.737,86.691,4.76411239]
[1773503751841,8.9650349,86.736,86.691,4.76411239]
[1773503752142,10.374,86.738,86.691,4.76411239]
[1773503752435,8.9650813,86.737,86.691,4.76411239]
[1773503752639,8.9650813,86.736,86.691,4.76411239]
[1773503752844,10.374,86.738,86.691,4.76411239]
[1773503753043,10.374,86.735,86.691,4.76411239]
[1773503757447,8.96542853,86.734,86.691,4.76411239]
[1773503757649,10.374,86.735,86.691,4.76411239]
[1773503757948,8.96541359,86.734,86.691,4.76411239]
[1773503758150,10.374,86.735,86.691,4.76411239]
[1773503758349,8.96545062,86.734,86.691,4.76411239]
[1773503758650,10.374,86.735,86.691,4.76411239]
[1773503758949,10.375,86.733,86.691,4.76411239]
[1773503767566,10.373,86.744,86.691,4.76411239]
[1773503767864,18.09499265,86.743,86.691,4.76411239]
[1773503768064,10.374,86.739,86.691,4.76411239]
[1773503768365,18.09499265,86.738,86.691,4.76411239]
[1773503768666,18.09499265,86.737,86.691,4.76411239]
[1773503768861,8.96519434,86.736,86.691,4.76411239]
[1773503769057,8.96519434,86.735,86.691,4.76411239]
[1773503769362,8.96519434,86.734,86.691,4.76411239]
[1773503769563,8.96519434,86.733,86.691,4.76411239]
[1773503769763,10.374,86.739,86.691,4.76411239]
[1773503769963,18.09710834,86.738,86.691,4.76411239]
[1773503770164,18.09710834,86.737,86.691,4.76411239]
[1773503770365,18.09710834,86.736,86.691,4.76411239]
[1773503770664,8.96624104,86.735,86.691,4.76411239]
[1773503770864,8.96624104,86.734,86.691,4.76411239]
[1773503771164,8.96624104,86.733,86.691,4.76411239]
[1773503771468,10.374,86.739,86.691,4.76411239]
[1773503771667,18.09871292,86.738,86.691,4.76411239]
[1773503771867,18.09871292,86.737,86.691,4.76411239]
[1773503772066,18.09871292,86.736,86.691,4.76411239]
[1773503772266,8.96703529,86.735,86.691,4.76411239]
[1773503772566,8.96703529,86.734,86.691,4.76411239]
[1773503772766,8.96703529,86.733,86.691,4.76411239]
[1773503772969,10.374,86.739,86.691,4.76411239]
[1773503773164,18.09867994,86.738,86.691,4.76411239]
[1773503773364,18.09867994,86.737,86.691,4.76411239]
[1773503773663,18.09867994,86.736,86.691,4.76411239]
[1773503773860,8.96701933,86.735,86.691,4.76411239]
[1773503774066,8.96701933,86.734,86.691,4.76411239]
[1773503774269,8.96701933,86.733,86.691,4.76411239]
[1773503774567,10.374,86.739,86.691,4.76411239]
[1773503774763,10.374,86.737,86.691,4.76411239]
[1773503774963,18.09308702,86.736,86.691,4.76411239]
[1773503775164,8.96145544,86.735,86.691,4.76411239]
[1773503775463,8.96145544,86.734,86.691,4.76411239]
[1773503775664,8.96145544,86.733,86.691,4.76411239]
[1773503775864,10.374,86.737,86.691,4.76411239]
[1773503776066,18.09307411,86.736,86.691,4.76411239]
[1773503776265,8.96144929,86.735,86.691,4.76411239]
[1773503776466,8.96144929,86.734,86.691,4.76411239]
[1773503776769,8.96144929,86.733,86.691,4.76411239]
[1773503777069,10.373,86.745,86.691,4.76411239]
[1773503777268,10.374,86.74,86.691,4.76411239]
[1773503777470,18.09322079,86.739,86.691,4.76411239]
[1773503777669,18.09322079,86.738,86.691,4.76411239]
[1773503777870,18.09322079,86.737,86.691,4.76411239]
[1773503778070,18.09322079,86.736,86.691,4.76411239]
[1773503778272,8.96153031,86.735,86.691,4.76411239]
[1773503778462,8.96153031,86.734,86.691,4.76411239]
[1773503778667,8.96153031,86.733,86.691,4.76411239]
[1773503778873,10.374,86.74,86.691,4.76411239]
[1773503779173,18.09324781,86.739,86.691,4.76411239]
[1773503779369,18.09324781,86.738,86.691,4.76411239]
[1773503779570,18.09324781,86.737,86.691,4.76411239]
[1773503779870,18.09324781,86.736,86.691,4.76411239]
[1773503780071,8.96153773,86.735,86.691,4.76411239]
[1773503780271,8.96153773,86.734,86.691,4.76411239]
[1773503780472,8.96153773,86.733,86.691,4.76411239]
[1773503780773,10.374,86.74,86.691,4.76411239]
[1773503781075,18.09332273,86.739,86.691,4.76411239]
[1773503781264,18.09332273,86.738,86.691,4.76411239]
[1773503781469,18.09332273,86.737,86.691,4.76411239]
[1773503781669,18.09332273,86.736,86.691,4.76411239]
[1773503781869,8.9615757,86.735,86.691,4.76411239]
[1773503782069,8.9615757,86.734,86.691,4.76411239]
[1773503782274,8.9615757,86.733,86.693,4.6286011]
[1773503782477,10.374,86.74,86.693,4.6286011]
[1773503782775,18.09310076,86.739,86.693,4.6286011]
[1773503782975,18.09310076,86.738,86.693,4.6286011]
[1773503783178,18.09310076,86.737,86.693,4.6286011]
[1773503783376,8.96146682,86.736,86.693,4.6286011]
[1773503783577,8.96146682,86.735,86.693,4.6286011]
[1773503783773,10.374,86.74,86.693,4.6286011]
[1773503783973,18.09331408,86.739,86.693,4.6286011]
[1773503784173,18.09331408,86.738,86.693,4.6286011]
[1773503784375,8.96159945,86.737,86.693,4.6286011]
[1773503784575,8.96159945,86.736,86.693,4.6286011]
[1773503784774,8.96159945,86.735,86.693,4.6286011]
[1773503784975,10.374,86.74,86.693,4.6286011]
[1773503785176,18.09323027,86.739,86.693,4.6286011]
[1773503785376,18.09323027,86.738,86.693,4.6286011]
[1773503785576,10.374,86.74,86.693,4.6286011]
[1773503785577,8.96155579,86.737,86.693,4.6286011]
[1773503785776,8.96155579,86.736,86.693,4.6286011]
[1773503785976,8.96155579,86.735,86.693,4.6286011]
[1773503786177,10.374,86.74,86.693,4.6286011]
[1773503786371,18.09336774,86.739,86.693,4.6286011]
[1773503786577,18.09336774,86.738,86.693,4.6286011]
[1773503786776,8.96162517,86.737,86.693,4.6286011]
[1773503786976,8.96162517,86.736,86.693,4.6286011]
[1773503787180,8.96162517,86.735,86.693,4.6286011]
[1773503787373,10.374,86.74,86.693,4.6286011]
[1773503787580,8.96147254,86.739,86.701,4.62777352]
[1773503787780,10.373,86.749,86.701,4.62777352]
[1773503788082,18.09441277,86.748,86.701,4.62777352]
[1773503788384,18.09441277,86.747,86.701,4.62777352]
[1773503788587,18.09441277,86.746,86.701,4.62777352]
[1773503788780,18.09441277,86.745,86.701,4.62777352]
[1773503789082,18.09441277,86.744,86.701,4.62777352]
[1773503789284,18.09441277,86.743,86.701,4.62777352]
[1773503789485,3.14123716,86.75,86.701,4.62777352]
[1773503789486,8.96216102,86.742,86.701,4.62777352]
[1773503789685,8.96216102,86.741,86.701,4.62777352]
[1773503789880,8.96216102,86.74,86.701,4.62777352]
[1773503790182,10.373,86.746,86.701,4.62777352]
[1773503790384,18.09175612,86.745,86.701,4.62777352]
[1773503790583,18.09175612,86.744,86.701,4.62777352]
[1773503790782,18.09175612,86.743,86.701,4.62777352]
[1773503790984,8.96084771,86.742,86.701,4.62777352]
[1773503791178,8.96084771,86.741,86.701,4.62777352]
[1773503791378,8.96084771,86.74,86.701,4.62777352]
[1773503791579,10.373,86.746,86.701,4.62777352]
[1773503791776,18.090712,86.745,86.701,4.62777352]
[1773503792079,18.090712,86.744,86.701,4.62777352]
[1773503792281,18.090712,86.743,86.701,4.62777352]
[1773503792484,18.090712,86.742,86.701,4.62777352]
[1773503792685,8.9603307,86.741,86.701,4.62777352]
[1773503792887,8.9603307,86.74,86.701,4.62777352]
[1773503793086,10.373,86.746,86.701,4.62777352]
[1773503793287,18.12927959,86.745,86.701,4.62777352]
[1773503793485,18.12927959,86.744,86.701,4.62777352]
[1773503793786,18.12927959,86.743,86.701,4.62777352]
[1773503793985,8.9594661,86.742,86.701,4.62777352]
[1773503794186,8.9594661,86.741,86.701,4.62777352]
[1773503794386,8.9594661,86.74,86.701,4.62777352]
[1773503794578,10.373,86.746,86.701,4.62777352]
[1773503794783,8.96432748,86.745,86.701,4.62777352]
[1773503794979,10.373,86.746,86.701,4.62777352]
[1773503795179,8.96473563,86.745,86.701,4.62777352]
[1773503795385,10.373,86.746,86.701,4.62777352]
[1773503795589,8.96349055,86.745,86.701,4.62777352]
[1773503795785,10.373,86.746,86.701,4.62777352]
[1773503796091,8.96348947,86.745,86.701,4.62777352]
[1773503796291,10.373,86.746,86.701,4.62777352]
[1773503799789,3.14123716,86.75,86.691,4.60900594]
[1773503799990,3.14123716,86.73,86.691,4.60900594]
[1773503801692,13.51623716,86.73,86.691,4.60900594]
[1773503813600,13.51624386,86.73,86.691,4.60900594]
[1773503821406,3.14124386,86.73,86.691,4.60900594]
[1773503831411,3.14124386,86.73,86.685,10.38]
[1773503832014,3.14124386,86.73,86.685,15.0276799]
[1773503832416,3.14124386,86.73,86.685,4.6476799]
[1773503844128,8.95272041,86.729,86.685,4.6476799]
[1773503844328,8.95272041,86.728,86.685,4.6476799]
[1773503844528,3.14124386,86.73,86.685,4.6476799]
[1773503844831,3.14124386,86.72,86.676,4.65395793]
[1773503845828,3.14124386,86.72,86.68,4.65394904]
[1773503854332,8.92254746,86.736,86.682,4.65737425]
[1773503854536,17.8664117,86.735,86.682,4.65737425]
[1773503854736,17.8664117,86.734,86.682,4.65737425]
[1773503854937,17.8664117,86.733,86.682,4.65737425]
[1773503855235,8.94386424,86.732,86.682,4.65737425]
[1773503855438,8.94386424,86.731,86.682,4.65737425]
[1773503855634,10.374,86.738,86.684,4.65778316]
[1773503855835,8.94405121,86.737,86.684,4.65778316]
[1773503856030,8.94405121,86.736,86.684,4.65778316]
[1773503856236,8.94405121,86.735,86.686,4.66038669]
[1773503856437,8.94405121,86.734,86.686,4.66038669]
[1773503856638,8.94405121,86.733,86.686,4.66038669]
[1773503856937,8.94405121,86.732,86.686,4.66038669]
[1773503857238,8.94405121,86.731,86.686,4.66038669]
[1773503857438,10.374,86.738,86.686,4.66038669]
[1773503857638,17.86683599,86.737,86.686,4.66038669]
[1773503857840,8.94413885,86.736,86.686,4.66038669]
[1773503858037,8.94413885,86.735,86.686,4.66038669]
[1773503858237,8.94413885,86.734,86.686,4.66038669]
[1773503858438,8.94413885,86.733,86.686,4.66038669]
[1773503858639,8.94413885,86.732,86.686,4.66038669]
[1773503858843,8.94413885,86.731,86.686,4.66038669]
[1773503859037,8.94413885,86.73,86.686,4.66038669]
[1773503859336,10.374,86.738,86.686,4.66038669]
[1773503859537,17.86699625,86.737,86.686,4.66038669]
[1773503859740,8.94421876,86.736,86.686,4.66038669]
[1773503859940,8.94421876,86.735,86.686,4.66038669]
[1773503860137,8.94421876,86.734,86.686,4.66038669]
[1773503860336,8.94421876,86.733,86.686,4.66038669]
[1773503860633,8.94421876,86.732,86.686,4.66038669]
[1773503860831,8.94421876,86.731,86.686,4.66038669]
[1773503861037,8.94421876,86.73,86.686,4.66038669]
[1773503861237,10.374,86.738,86.686,4.66038669]
[1773503861438,8.94492819,86.737,86.686,4.66038669]
[1773503861735,8.94492819,86.736,86.686,4.66038669]
[1773503861934,8.94492819,86.735,86.686,4.66038669]
[1773503862135,3.14124386,86.73,86.686,4.66038669]
[1773503869646,10.375,86.734,86.686,4.66038669]
[1773503869946,3.14124386,86.73,86.686,4.66038669]
[1773503875551,3.14129495,86.73,86.686,4.66038669]
[1773503884062,3.14129495,86.73,86.688,4.690981]
[1773503884964,10.374,86.737,86.688,4.690981]
[1773503885262,17.98961799,86.736,86.688,4.690981]
[1773503885463,17.98961799,86.735,86.688,4.690981]
[1773503885665,17.98961799,86.734,86.688,4.690981]
[1773503885961,8.94209151,86.733,86.688,4.690981]
[1773503886162,8.94209151,86.732,86.688,4.690981]
[1773503886363,8.94209151,86.731,86.688,4.690981]
[1773503886564,8.94209151,86.73,86.688,4.690981]
[1773503886764,10.374,86.737,86.688,4.690981]
[1773503886964,17.98771004,86.736,86.688,4.690981]
[1773503887165,17.98771004,86.735,86.688,4.690981]
[1773503887364,17.98771004,86.734,86.688,4.690981]
[1773503887564,8.94114197,86.733,86.688,4.690981]
[1773503887763,8.94114197,86.732,86.688,4.690981]
[1773503887964,3.14129495,86.73,86.688,4.690981]
[1773503891772,8.94184748,86.729,86.688,4.690981]
[1773503891972,3.14129495,86.73,86.688,4.690981]
[1773503892169,8.94184748,86.729,86.688,4.690981]
[1773503892371,3.14129495,86.73,86.688,4.690981]
[1773503892669,8.94202643,86.729,86.688,4.690981]
[1773503892870,3.14129495,86.73,86.688,4.690981]
[1773503893070,8.94202643,86.729,86.688,4.690981]
[1773503893272,3.14129495,86.73,86.688,4.690981]
[1773503893572,8.94222441,86.729,86.688,4.690981]
[1773503893774,10.374,86.737,86.688,4.690981]
[1773503893971,17.98994228,86.736,86.688,4.690981]
[1773503894272,17.98994228,86.735,86.688,4.690981]
[1773503894473,17.98994228,86.734,86.688,4.690981]
[1773503894670,8.94225033,86.733,86.688,4.690981]
[1773503894870,8.94225033,86.732,86.688,4.690981]
[1773503895172,8.94225033,86.731,86.688,4.690981]
[1773503895369,8.94225033,86.73,86.688,4.690981]
[1773503895570,8.94225033,86.729,86.688,4.690981]
[1773503895763,10.374,86.737,86.688,4.690981]
[1773503896073,8.94393154,86.736,86.688,4.690981]
[1773503896373,8.94393154,86.735,86.688,4.690981]
[1773503896671,8.94393154,86.734,86.688,4.690981]
[1773503896869,8.94393154,86.733,86.688,4.690981]
[1773503897069,10.374,86.737,86.688,4.690981]
[1773503897265,3.14129495,86.76,86.692,4.68982605]
[1773503897473,8.94733023,86.759,86.701,4.68982605]
[1773503897668,8.94733023,86.758,86.701,4.68982605]
[1773503897863,8.94733023,86.757,86.701,4.68982605]
[1773503898068,8.94733023,86.756,86.701,4.68982605]
[1773503898274,3.14129495,86.76,86.701,4.68982605]
[1773503898469,8.94015518,86.759,86.701,4.68982605]
[1773503898672,3.14129495,86.76,86.706,4.68983184]
[1773503898866,3.14129495,86.76,86.653,34.58]
[1773503898867,3.14129495,86.77,86.711,4.6899712]
[1773503899071,10.37,86.768,86.717,4.6899712]
[1773503899977,3.14129495,86.74,86.691,4.66404198]
[1773503901973,3.14129495,86.74,86.68,3.14129495]
[1773503901974,3.14129495,86.74,86.693,4.6619817]
[1773503911192,10.373,86.748,86.693,4.6619817]
[1773503913795,3.14129495,86.74,86.693,4.6619817]
[1773503914590,10.373,86.748,86.695,10.379]
[1773503914796,3.14129495,86.74,86.696,4.6495655]
[1773503920702,10.373,86.748,86.696,4.6495655]
[1773503941213,8.92472133,86.747,86.696,4.6495655]
[1773503941412,10.373,86.748,86.696,4.6495655]
[1773503941611,8.92472133,86.747,86.696,4.6495655]
[1773503941811,10.373,86.748,86.696,4.6495655]
[1773503942006,8.92472133,86.747,86.696,4.6495655]
[1773503942211,10.373,86.748,86.696,4.6495655]
[1773503942407,8.92635505,86.747,86.696,4.6495655]
[1773503942607,10.373,86.748,86.696,4.6495655]
[1773503942803,8.92635828,86.747,86.696,4.6495655]
[1773503943013,10.373,86.748,86.696,4.6495655]
[1773503943313,8.92646942,86.747,86.696,4.6495655]
[1773503943612,8.92646942,86.746,86.696,4.6495655]
[1773503943812,10.373,86.748,86.696,4.6495655]
[1773503944107,8.92807461,86.747,86.696,4.6495655]
[1773503944307,18.11859681,86.746,86.696,4.6495655]
[1773503944512,18.11859681,86.745,86.696,4.6495655]
[1773503944704,18.11859681,86.744,86.696,4.6495655]
[1773503944906,8.92807461,86.743,86.696,4.6495655]
[1773503945104,10.373,86.748,86.696,4.6495655]
[1773503945306,18.12740848,86.747,86.696,4.6495655]
[1773503945506,18.12740848,86.746,86.696,4.6495655]
[1773503945815,18.12740848,86.745,86.696,4.6495655]
[1773503946017,18.12740848,86.744,86.696,4.6495655]
[1773503946214,8.93687332,86.743,86.696,4.6495655]
[1773503946417,10.373,86.748,86.696,4.6495655]
[1773503946617,18.12743185,86.747,86.696,4.6495655]
[1773503946816,18.12743185,86.746,86.696,4.6495655]
[1773503947017,18.12743185,86.745,86.696,4.6495655]
[1773503947318,18.12743185,86.744,86.696,4.6495655]
[1773503947518,8.93688444,86.743,86.696,4.6495655]
[1773503947711,10.373,86.748,86.696,4.6495655]
[1773503948016,10.373,86.746,86.696,4.6495655]
[1773503948215,18.12744658,86.745,86.696,4.6495655]
[1773503948513,18.12744658,86.744,86.696,4.6495655]
[1773503948714,8.936892,86.743,86.696,4.6495655]
[1773503948914,10.373,86.746,86.696,4.6495655]
[1773503949114,18.1274582,86.745,86.696,4.6495655]
[1773503949313,18.1274582,86.744,86.696,4.6495655]
[1773503949513,8.9368981,86.743,86.696,4.6495655]
[1773503949814,10.373,86.746,86.696,4.6495655]
[1773503950116,18.12747459,86.745,86.696,4.6495655]
[1773503950415,18.12747459,86.744,86.696,4.6495655]
[1773503950615,8.93690657,86.743,86.696,4.6495655]
[1773503950817,10.373,86.746,86.696,4.6495655]
[1773503951015,18.12749786,86.745,86.696,4.6495655]
[1773503951217,18.12749786,86.744,86.696,4.6495655]
[1773503951417,8.93691753,86.743,86.696,4.6495655]
[1773503951618,10.373,86.746,86.696,4.6495655]
[1773503951818,18.12751176,86.745,86.696,4.6495655]
[1773503952018,18.12751176,86.744,86.696,4.6495655]
[1773503952319,8.93692385,86.743,86.696,4.6495655]
[1773503952517,10.373,86.746,86.696,4.6495655]
[1773503952717,18.1275317,86.745,86.7,4.77176494]
[1773503952917,18.1275317,86.744,86.7,4.77176494]
[1773503953118,8.9369332,86.743,86.7,4.77176494]
[1773503953319,10.373,86.746,86.7,4.77176494]
[1773503953514,18.12755289,86.745,86.7,4.77176494]
[1773503953719,18.12755289,86.744,86.7,4.77176494]
[1773503953916,8.93694321,86.743,86.7,4.77176494]
[1773503954124,10.373,86.746,86.7,4.77176494]
[1773503954316,18.12757285,86.745,86.7,4.77176494]
[1773503954515,18.12757285,86.744,86.7,4.77176494]
[1773503954723,8.93695242,86.743,86.7,4.77176494]
[1773503955023,8.93695242,86.742,86.7,4.77176494]
[1773503955218,10.373,86.746,86.7,4.77176494]
[1773503955419,18.13223338,86.745,86.7,4.77176494]
[1773503955714,18.13223338,86.744,86.7,4.77176494]
[1773503955919,8.94161214,86.743,86.7,4.77176494]
[1773503956118,8.94161214,86.742,86.7,4.77176494]
[1773503956319,10.373,86.746,86.7,4.77176494]
[1773503956517,18.13224819,86.745,86.7,4.77176494]
[1773503956724,18.13224819,86.744,86.7,4.77176494]
[1773503956925,8.94161882,86.743,86.7,4.77176494]
[1773503957125,8.94161882,86.742,86.7,4.77176494]
[1773503957329,10.373,86.746,86.7,4.77176494]
[1773503957520,18.13226266,86.745,86.7,4.77176494]
[1773503957824,18.13226266,86.744,86.7,4.77176494]
[1773503958026,8.94162533,86.743,86.7,4.77176494]
[1773503958325,8.94162533,86.742,86.7,4.77176494]
[1773503958524,10.373,86.746,86.7,4.77176494]
[1773503958725,18.13226318,86.745,86.7,4.77176494]
[1773503958926,18.13226318,86.744,86.7,4.77176494]
[1773503959128,8.94162507,86.743,86.7,4.77176494]
[1773503959327,8.94162507,86.742,86.7,4.77176494]
[1773503959529,10.373,86.746,86.7,4.77176494]
[1773503959828,18.13227014,86.745,86.7,4.77176494]
[1773503960030,18.13227014,86.744,86.7,4.77176494]
[1773503960230,8.94162769,86.743,86.7,4.77176494]
[1773503960426,8.94162769,86.742,86.7,4.77176494]
[1773503960627,10.373,86.746,86.7,4.77176494]
[1773503960827,18.13227323,86.745,86.7,4.77176494]
[1773503961029,18.13227323,86.744,86.7,4.77176494]
[1773503961230,8.94162887,86.743,86.7,4.77176494]
[1773503961431,8.94162887,86.742,86.7,4.77176494]
[1773503961631,10.373,86.746,86.7,4.77176494]